fUSD/lending_fUSD_20240619
["ID","MTS","AMOUNT","RATE_DAILY","PERIOD"]
[329868157,1718775067243,-500.0,0.00014246,2]
[329868158,1718775067253,-500.0,0.00014246,2]
[329868159,1718775067263,-500.0,0.00014246,2]
[329868160,1718775067272,-500.0,0.00014246,2]
[329868161,1718775067281,-503.52,0.00014246,2]
[329868162,1718775067290,-903.0,0.00014246,2]
[329868163,1718775067301,-382.06762377,0.00014246,2]
[329868164,1718775067311,-500.0,0.00014246,2]
[329868165,1718775067320,-500.0,0.00014246,2]
[329868166,1718775067329,-500.0,0.00014246,2]
[329868167,1718775067338,-500.0,0.00014246,2]
[329868168,1718775067347,-500.0,0.00014246,2]
[329868169,1718775067357,-500.0,0.00014246,2]
[329868170,1718775067366,-500.0,0.00014246,2]
[329868171,1718775067375,-500.0,0.00014246,2]
[329868172,1718775067384,-500.0,0.00014246,2]
[329868173,1718775067393,-758.68,0.00014246,2]
[329868174,1718775067402,-500.0,0.00014246,2]
[329868175,1718775067411,-692.7,0.00014246,2]
[329868176,1718775067420,-500.0,0.00014246,2]
[329868177,1718775067430,-603.40524212,0.00014246,2]
[329868178,1718775067439,-500.0,0.00014246,2]
[329868179,1718775067448,-500.0,0.00014246,2]
[329868180,1718775067458,-500.0,0.00014246,2]
[329868181,1718775067467,-606.93,0.00014246,2]
[329868182,1718775067476,-500.0,0.00014246,2]
[329868183,1718775067485,-500.0,0.00014246,2]
[329868184,1718775067494,-503.50755413,0.00014246,2]
[329868185,1718775067503,-500.0,0.00014246,2]
[329868186,1718775067512,-500.0,0.00014246,2]
[329868187,1718775067521,-930.53,0.00014246,2]
[329868188,1718775067530,-500.0,0.00014246,2]
[329868189,1718775067539,-652.78,0.00014246,2]
[329868190,1718775067549,-500.0,0.00014246,2]
[329868191,1718775067558,-1113.81,0.00014246,2]
[329868192,1718775067567,-1005.86,0.00014246,2]
[329868193,1718775067576,-1000.0,0.00014246,5]
[329868194,1718775067585,-558.68036819,0.00014246,2]
[329868195,1718775067595,-500.0,0.00014246,2]
[329868196,1718775067604,-1319.03,0.00014246,2]
[329868197,1718775067619,-619.84126212,0.00014246,2]
[329868198,1718775067629,-500.0,0.00014246,2]
[329868199,1718775067638,-500.0,0.00014246,2]
[329868200,1718775067647,-250.0,0.00014246,2]
[329868201,1718775067658,-500.0,0.00014246,2]
[329868202,1718775067667,-500.0,0.00014246,2]
[329868203,1718775067676,-500.0,0.00014246,2]
[329868204,1718775067686,-684.04,0.00014246,2]
[329868205,1718775067696,-721.54,0.00014246,2]
[329868206,1718775067706,-864.87,0.00014246,2]
[329868207,1718775067715,-506.97359406,0.00014246,2]
[329868208,1718775067725,-500.0,0.00014246,2]
[329868209,1718775067735,-507.61,0.00014246,2]
[329868210,1718775067744,-657.04,0.00014246,2]
[329868211,1718775067753,-711.91,0.00014246,2]
[329868212,1718775067762,-500.0,0.00014246,2]
[329868213,1718775067772,-393.54674951,0.00014246,2]
[329868214,1718775067782,-500.0,0.00014246,2]
[329868215,1718775067792,-500.0,0.00014246,2]
[329868216,1718775067804,-500.0,0.00014246,2]
[329868217,1718775067813,-503.54706357,0.00014246,2]
[329868218,1718775067822,-500.0,0.00014246,2]
[329868219,1718775067832,-500.0,0.00014246,2]
[329868220,1718775067841,-500.0,0.00014246,2]
[329868221,1718775067850,-500.0,0.00014246,2]
[329868222,1718775067859,-500.0,0.00014246,2]
[329868223,1718775067869,-500.0,0.00014246,2]
[329868224,1718775067878,-500.0,0.00014246,2]
[329868225,1718775067887,-335.41679013,0.00014246,2]
[329868226,1718775067897,-500.0,0.00014246,2]
[329868227,1718775067906,-500.0,0.00014246,2]
[329868228,1718775067916,-500.0,0.00014246,2]
[329868229,1718775067926,-500.0,0.00014246,2]
[329868230,1718775067936,-588.88246876,0.00014246,2]
[329868231,1718775067945,-500.0,0.00014246,2]
[329868232,1718775067955,-500.0,0.00014246,2]
[329868233,1718775067965,-677.32,0.00014246,2]
[329868234,1718775067976,-690.27,0.00014246,2]
[329868235,1718775067986,-794.3,0.00014246,2]
[329868236,1718775067996,-371.84968318,0.00014246,2]
[329868237,1718775068007,-500.0,0.00014246,2]
[329868238,1718775068018,-500.0,0.00014246,2]
[329868239,1718775068029,-500.0,0.00014246,2]
[329868240,1718775068040,-610.13130649,0.00014246,2]
[329868241,1718775068054,-500.0,0.00014246,2]
[329868242,1718775068066,-624.43,0.00014246,2]
[329868243,1718775068077,-500.0,0.00014246,2]
[329868244,1718775068088,-1127.2,0.00014246,2]
[329868245,1718775068099,-500.0,0.00014246,2]
[329868246,1718775068109,-500.0,0.00014246,2]
[329868247,1718775068119,-658.42,0.00014246,2]
[329868248,1718775068129,-500.0,0.00014246,2]
[329868249,1718775068139,-500.0,0.00014246,2]
[329868250,1718775068148,-584.09,0.00014246,2]
[329868251,1718775068157,-500.0,0.00014246,2]
[329868252,1718775068167,-502.15,0.00014246,2]
[329868253,1718775068178,-500.0,0.00014246,2]
[329868254,1718775068188,-592.46,0.00014246,2]
[329868255,1718775068197,-500.0,0.00014246,2]
[329868256,1718775068207,-1040.79,0.00014246,2]
[329868257,1718775068217,-500.0,0.00014246,2]
[329868258,1718775068227,-736.02,0.00014246,2]
[329868259,1718775068236,-500.0,0.00014246,2]
[329868260,1718775068246,-500.0,0.00014246,2]
[329868261,1718775068255,-548.10658631,0.00014246,2]
[329868262,1718775068266,-500.0,0.00014246,2]
[329868263,1718775068275,-945.82,0.00014246,2]
[329868264,1718775068285,-634.39434113,0.00014246,2]
[329868265,1718775068295,-688.01,0.00014246,2]
[329868266,1718775068310,-500.0,0.00014246,2]
[329868267,1718775068319,-500.0,0.00014246,2]
[329868268,1718775068329,-973.84,0.00014246,2]
[329868269,1718775068338,-519.48960909,0.00014246,2]
[329868270,1718775068347,-753.85,0.00014246,2]
[329868271,1718775068356,-500.0,0.00014246,2]
[329868272,1718775068365,-971.35,0.00014246,2]
[329868273,1718775068374,-500.0,0.00014246,2]
[329868274,1718775068384,-1067.5,0.00014246,2]
[329868275,1718775068393,-500.0,0.00014246,2]
[329868276,1718775068404,-500.0,0.00014246,2]
[329868277,1718775068414,-500.2,0.00014246,2]
[329868278,1718775068423,-500.0,0.00014246,2]
[329868279,1718775068432,-500.0,0.00014246,2]
[329868280,1718775068441,-1116.97,0.00014246,2]
[329868281,1718775068450,-500.0,0.00014246,2]
[329868282,1718775068460,-524.63,0.00014246,2]
[329868283,1718775068469,-662.34,0.00014246,2]
[329868284,1718775068479,-500.0,0.00014246,2]
[329868285,1718775068488,-500.0,0.00014246,2]
[329868286,1718775068498,-500.0,0.00014246,2]
[329868287,1718775068508,-500.0,0.00014246,2]
[329868288,1718775068518,-500.0,0.00014246,2]
[329868289,1718775068527,-500.0,0.00014246,2]
[329868290,1718775068537,-688.47,0.00014246,2]
[329868291,1718775068546,-500.0,0.00014246,2]
[329868292,1718775068560,-500.0,0.00014246,2]
[329868293,1718775068569,-500.0,0.00014246,2]
[329868294,1718775068578,-500.0,0.00014246,2]
[329868295,1718775068587,-500.0,0.00014246,2]
[329868296,1718775068596,-608.05,0.00014246,2]
[329868297,1718775068611,-500.0,0.00014246,2]
[329868298,1718775068620,-936.59,0.00014246,2]
[329868299,1718775068629,-1234.14,0.00014246,2]
[329868300,1718775068638,-861.83,0.00014246,2]
[329868301,1718775068648,-500.0,0.00014246,2]
[329868302,1718775068657,-500.0,0.00014246,2]
[329868303,1718775068666,-500.0,0.00014246,2]
[329868304,1718775068675,-642.52363206,0.00014246,2]
[329868305,1718775068686,-506.49524283,0.00014246,2]
[329868306,1718775068695,-567.64,0.00014246,2]
[329868307,1718775068703,-500.0,0.00014246,2]
[329868308,1718775068712,-500.0,0.00014246,2]
[329868309,1718775068721,-500.0,0.00014246,2]
[329868310,1718775068731,-500.0,0.00014246,2]
[329868311,1718775068740,-500.0,0.00014246,2]
[329868312,1718775068749,-500.0,0.00014246,2]
[329868313,1718775068758,-500.0,0.00014246,2]
[329868314,1718775068767,-500.0,0.00014246,2]
[329868315,1718775068777,-500.0,0.00014246,2]
[329868316,1718775068786,-291.36950131,0.00014246,2]
[329868317,1718775068796,-500.0,0.00014246,2]
[329868318,1718775068809,-500.0,0.00014246,2]
[329868319,1718775068817,-500.0,0.00014246,2]
[329868320,1718775068827,-494.11012322,0.00014246,2]
[329868321,1718775068837,-500.0,0.00014246,2]
[329868322,1718775068845,-1011.67,0.00014246,2]
[329868323,1718775068854,-500.0,0.00014246,2]
[329868324,1718775068863,-500.0,0.00014246,2]
[329868325,1718775068873,-803.71,0.00014246,2]
[329868326,1718775068882,-500.0,0.00014246,2]
[329868327,1718775068892,-862.95,0.00014246,2]
[329868328,1718775068901,-500.0,0.00014246,2]
[329868329,1718775068911,-556.32,0.00014246,2]
[329868330,1718775068920,-500.0,0.00014246,2]
[329868331,1718775068929,-2079.85,0.00014246,2]
[329868332,1718775068939,-842.6,0.00014246,2]
[329868333,1718775068948,-500.0,0.00014246,2]
[329868334,1718775068957,-596.53776408,0.00014246,2]
[329868335,1718775068967,-500.0,0.00014246,2]
[329868336,1718775068976,-500.0,0.00014246,2]
[329868337,1718775068986,-790.78,0.00014246,2]
[329868338,1718775068996,-500.0,0.00014246,2]
[329868339,1718775069005,-1059.52,0.00014246,2]
[329868340,1718775069015,-511.38,0.00014246,2]
[329868341,1718775069025,-503.68280461,0.00014246,2]
[329868342,1718775069034,-500.0,0.00014246,2]
[329868343,1718775069043,-696.34,0.00014246,2]
[329868344,1718775069057,-500.0,0.00014246,2]
[329868345,1718775069067,-881.92,0.00014246,2]
[329868346,1718775069077,-989.77,0.00014246,2]
[329868347,1718775069086,-500.0,0.00014246,2]
[329868348,1718775069096,-500.0,0.00014246,2]
[329868349,1718775069105,-500.0,0.00014246,2]
[329868350,1718775069115,-500.0,0.00014246,2]
[329868351,1718775069124,-500.0,0.00014246,2]
[329868352,1718775069133,-500.0,0.00014246,2]
[329868353,1718775069143,-500.0,0.00014246,2]
[329868354,1718775069153,-500.0,0.00014246,2]
[329868355,1718775069163,-500.0,0.00014246,2]
[329868356,1718775069173,-500.0,0.00014246,2]
[329868357,1718775069183,-500.0,0.00014246,2]
[329868358,1718775069193,-500.0,0.00014246,2]
[329868359,1718775069203,-500.0,0.00014246,2]
[329868360,1718775069214,-500.0,0.00014246,2]
[329868361,1718775069224,-500.0,0.00014246,2]
[329868362,1718775069234,-1404.43,0.00014246,2]
[329868363,1718775069243,-500.0,0.00014246,2]
[329868364,1718775069253,-602.69,0.00014246,2]
[329868365,1718775069262,-1104.03,0.00014246,2]
[329868366,1718775069271,-958.25,0.00014246,2]
[329868367,1718775069280,-500.0,0.00014246,2]
[329868368,1718775069290,-717.68,0.00014246,2]
[329868369,1718775069307,-2653.31,0.00014246,2]
[329868370,1718775069315,-500.0,0.00014246,2]
[329868371,1718775069324,-500.0,0.00014246,2]
[329868372,1718775069333,-500.0,0.00014246,2]
[329868373,1718775069343,-579.06462299,0.00014246,2]
[329868374,1718775069352,-500.0,0.00014246,2]
[329868375,1718775069360,-500.0,0.00014246,2]
[329868376,1718775069370,-500.0,0.00014246,2]
[329868377,1718775069379,-1439.56,0.00014246,2]
[329868378,1718775069389,-500.0,0.00014246,2]
[329868379,1718775069398,-500.0,0.00014246,2]
[329868380,1718775069408,-539.44274571,0.00014246,2]
[329868381,1718775069417,-2273.61,0.00014246,2]
[329868382,1718775069427,-502.98625306,0.00014246,2]
[329868383,1718775069437,-500.0,0.00014246,2]
[329868384,1718775069446,-500.0,0.00014246,2]
[329868385,1718775069455,-1737.25,0.00014246,2]
[329868386,1718775069465,-816.19,0.00014246,2]
[329868387,1718775069475,-500.0,0.00014246,2]
[329868388,1718775069484,-519.48,0.00014246,2]
[329868389,1718775069493,-500.0,0.00014246,2]
[329868390,1718775069503,-854.47,0.00014246,2]
[329868391,1718775069513,-1072.7,0.00014246,2]
[329868392,1718775069522,-993.93,0.00014246,2]
[329868393,1718775069531,-1414.19,0.00014246,2]
[329868394,1718775069541,-1295.31,0.00014246,2]
[329868395,1718775069553,-500.0,0.00014246,2]
[329868396,1718775069562,-811.16,0.00014246,2]
[329868397,1718775069571,-704.19,0.00014246,2]
[329868398,1718775069580,-500.0,0.00014246,2]
[329868399,1718775069590,-1871.95,0.00014246,2]
[329868400,1718775069600,-569.77,0.00014246,2]
[329868401,1718775069610,-2290.89,0.00014246,2]
[329868402,1718775069624,-1489.82,0.00014246,2]
[329868403,1718775069634,-1359.48,0.00014246,2]
[329868404,1718775069643,-500.0,0.00014246,2]
[329868405,1718775069654,-1950.19,0.00014246,2]
[329868406,1718775069663,-500.0,0.00014246,2]
[329868407,1718775069673,-500.0,0.00014246,2]
[329868408,1718775069683,-500.0,0.00014246,2]
[329868409,1718775069693,-500.0,0.00014246,2]
[329868410,1718775069704,-1373.21,0.00014246,2]
[329868411,1718775069714,-1403.48,0.00014246,2]
[329868412,1718775069724,-959.47,0.00014246,2]
[329868413,1718775069733,-500.0,0.00014246,2]
[329868414,1718775069743,-954.41,0.00014246,2]
[329868415,1718775069752,-753.48,0.00014246,2]
[329868416,1718775069762,-500.0,0.00014246,2]
[329868417,1718775069772,-520.44511484,0.00014246,2]
[329868418,1718775069782,-500.0,0.00014246,2]
[329868419,1718775069792,-1498.39,0.00014246,2]
[329868420,1718775069804,-2190.48,0.00014246,2]
[329868421,1718775069814,-697.64,0.00014246,2]
[329868422,1718775069823,-714.23,0.00014246,2]
[329868423,1718775069832,-500.0,0.00014246,2]
[329868424,1718775069842,-692.55,0.00014246,2]
[329868425,1718775069852,-500.0,0.00014246,2]
[329868426,1718775069862,-969.12,0.00014246,2]
[329868427,1718775069872,-1805.75,0.00014246,2]
[329868428,1718775069881,-500.0,0.00014246,2]
[329868429,1718775069892,-793.06,0.00014246,2]
[329868430,1718775069902,-500.0,0.00014246,2]
[329868431,1718775069911,-1077.1,0.00014246,2]
[329868432,1718775069921,-2805.04,0.00014246,2]
[329868433,1718775069931,-1588.34,0.00014246,2]
[329868434,1718775069941,-2836.97,0.00014246,2]
[329868435,1718775069950,-733.13,0.00014246,2]
[329868436,1718775069960,-1485.37,0.00014246,2]
[329868437,1718775069970,-500.0,0.00014246,2]
[329868438,1718775069979,-1696.44,0.00014246,2]
[329868439,1718775069989,-1373.6,0.00014246,2]
[329868440,1718775069999,-500.0,0.00014246,2]
[329868441,1718775070009,-1397.59,0.00014246,2]
[329868442,1718775070018,-1586.45,0.00014246,2]
[329868443,1718775070029,-500.0,0.00014246,2]
[329868444,1718775070039,-500.0,0.00014246,2]
[329868445,1718775070051,-500.0,0.00014246,2]
[329868446,1718775070061,-558.92,0.00014246,2]
[329868447,1718775070071,-570.0,0.00014246,2]
[329868448,1718775070081,-500.0,0.00014246,2]
[329868449,1718775070090,-2021.7,0.00014246,2]
[329868450,1718775070100,-1537.37,0.00014246,2]
[329868451,1718775070111,-500.0,0.00014246,2]
[329868452,1718775070121,-632.49,0.00014246,2]
[329868453,1718775070130,-2561.23,0.00014246,2]
[329868454,1718775070140,-1345.97,0.00014246,2]
[329868455,1718775070150,-1041.25,0.00014246,2]
[329868456,1718775070160,-520.82,0.00014246,2]
[329868457,1718775070169,-500.0,0.00014246,2]
[329868458,1718775070179,-500.0,0.00014246,2]
[329868459,1718775070189,-1918.84,0.00014246,2]
[329868460,1718775070199,-500.0,0.00014246,2]
[329868461,1718775070208,-500.0,0.00014246,2]
[329868462,1718775070218,-874.46,0.00014246,2]
[329868463,1718775070228,-500.0,0.00014246,2]
[329868464,1718775070237,-500.0,0.00014246,2]
[329868465,1718775070247,-500.0,0.00014246,2]
[329868466,1718775070257,-500.0,0.00014246,2]
[329868467,1718775070267,-500.0,0.00014246,2]
[329868468,1718775070277,-500.0,0.00014246,2]
[329868469,1718775070286,-2573.6,0.00014246,2]
[329868470,1718775070296,-1463.8,0.00014246,2]
[329868471,1718775070308,-500.0,0.00014246,2]
[329868472,1718775070318,-1483.13,0.00014246,2]
[329868473,1718775070328,-513.15,0.00014246,2]
[329868474,1718775070338,-1779.03,0.00014246,2]
[329868475,1718775070347,-604.76,0.00014246,2]
[329868476,1718775070357,-580.25041054,0.00014246,2]
[329868477,1718775070366,-656.59,0.00014246,2]
[329868478,1718775070377,-500.0,0.00014246,2]
[329868479,1718775070386,-500.0,0.00014246,2]
[329868480,1718775070396,-500.0,0.00014246,2]
[329868481,1718775070406,-500.0,0.00014246,2]
[329868482,1718775070416,-1138.97,0.00014246,2]
[329868483,1718775070425,-500.0,0.00014246,2]
[329868484,1718775070435,-500.0,0.00014246,2]
[329868485,1718775070444,-1136.44,0.00014246,2]
[329868486,1718775070454,-500.0,0.00014246,2]
[329868487,1718775070463,-663.99,0.00014246,2]
[329868488,1718775070473,-500.0,0.00014246,2]
[329868489,1718775070483,-500.0,0.00014246,2]
[329868490,1718775070493,-500.0,0.00014246,2]
[329868491,1718775070503,-500.0,0.00014246,2]
[329868492,1718775070513,-534.37,0.00014246,2]
[329868493,1718775070523,-2296.6,0.00014246,2]
[329868494,1718775070534,-500.0,0.00014246,2]
[329868495,1718775070544,-500.0,0.00014246,2]
[329868496,1718775070556,-562.17131997,0.00014246,2]
[329868497,1718775070565,-742.08,0.00014246,2]
[329868498,1718775070575,-542.94,0.00014246,2]
[329868499,1718775070584,-2357.75,0.00014246,2]
[329868500,1718775070594,-500.0,0.00014246,2]
[329868501,1718775070606,-500.0,0.00014246,2]
[329868502,1718775070617,-958.25,0.00014246,2]
[329868503,1718775070627,-500.0,0.00014246,2]
[329868504,1718775070636,-1567.85,0.00014246,2]
[329868505,1718775070647,-500.0,0.00014246,2]
[329868506,1718775070656,-500.0,0.00014246,2]
[329868507,1718775070666,-500.0,0.00014246,2]
[329868508,1718775070676,-500.0,0.00014246,2]
[329868509,1718775070687,-902.79,0.00014246,2]
[329868510,1718775070698,-500.0,0.00014246,2]
[329868511,1718775070708,-500.0,0.00014246,2]
[329868512,1718775070718,-500.0,0.00014246,2]
[329868513,1718775070729,-1782.62,0.00014246,2]
[329868514,1718775070739,-1541.69,0.00014246,2]
[329868515,1718775070748,-1486.17,0.00014246,2]
[329868516,1718775070759,-508.39,0.00014246,2]
[329868517,1718775070770,-500.0,0.00014246,2]
[329868518,1718775070780,-500.0,0.00014246,2]
[329868519,1718775070791,-500.0,0.00014246,2]
[329868520,1718775070801,-1389.28,0.00014246,2]
[329868521,1718775070810,-1785.76,0.00014246,2]
[329868522,1718775070820,-500.0,0.00014246,2]
[329868523,1718775070829,-500.0,0.00014246,2]
[329868524,1718775070840,-848.25,0.00014246,2]
[329868525,1718775070852,-973.75,0.00014246,2]
[329868526,1718775070862,-908.9,0.00014246,2]
[329868527,1718775070873,-810.82,0.00014246,2]
[329868528,1718775070883,-500.0,0.00014246,2]
[329868529,1718775070893,-1878.14,0.00014246,2]
[329868530,1718775070903,-500.0,0.00014246,2]
[329868531,1718775070914,-5000.0,0.00014246,2]
[329868532,1718775070924,-500.0,0.00014246,2]
[329868533,1718775070934,-1101.53,0.00014246,2]
[329868534,1718775070944,-500.0,0.00014246,2]
[329868535,1718775070955,-1755.97,0.00014246,2]
[329868536,1718775070966,-586.8,0.00014246,2]
[329868537,1718775070976,-1265.84,0.00014246,2]
[329868538,1718775070987,-939.1,0.00014246,2]
[329868539,1718775070997,-1249.69,0.00014246,2]
[329868540,1718775071008,-500.0,0.00014246,2]
[329868541,1718775071018,-586.76899341,0.00014246,2]
[329868542,1718775071027,-834.79,0.00014246,2]
[329868543,1718775071039,-1302.07,0.00014246,2]
[329868544,1718775071051,-500.0,0.00014246,2]
[329868545,1718775071061,-500.0,0.00014246,2]
[329868546,1718775071072,-500.0,0.00014246,2]
[329868547,1718775071082,-2355.15,0.00014246,2]
[329868548,1718775071092,-1231.71,0.00014246,2]
[329868549,1718775071103,-968.84,0.00014246,2]
[329868550,1718775071113,-1018.8,0.00014246,2]
[329868551,1718775071123,-1527.41,0.00014246,2]
[329868552,1718775071133,-500.0,0.00014246,2]
[329868553,1718775071143,-520.81,0.00014246,2]
[329868554,1718775071152,-500.0,0.00014246,2]
[329868555,1718775071162,-500.0,0.00014246,2]
[329868556,1718775071171,-619.97,0.00014246,2]
[329868557,1718775071181,-758.6,0.00014246,2]
[329868558,1718775071191,-2046.44,0.00014246,2]
[329868559,1718775071201,-1648.61,0.00014246,2]
[329868560,1718775071211,-846.89,0.00014246,2]
[329868561,1718775071221,-689.84,0.00014246,2]
[329868562,1718775071231,-1176.45,0.00014246,2]
[329868563,1718775071240,-502.9412001,0.00014246,2]
[329868564,1718775071250,-629.04,0.00014246,2]
[329868565,1718775071260,-500.0,0.00014246,2]
[329868566,1718775071270,-500.0,0.00014246,2]
[329868567,1718775071281,-534.26,0.00014246,2]
[329868568,1718775071291,-500.0,0.00014246,2]
[329868569,1718775071302,-885.05,0.00014246,2]
[329868570,1718775071312,-1498.54,0.00014246,2]
[329868571,1718775071322,-1048.66,0.00014246,2]
[329868572,1718775071332,-500.0,0.00014246,2]
[329868573,1718775071343,-502.75351505,0.00014246,2]
[329868574,1718775071354,-500.0,0.00014246,2]
[329868575,1718775071364,-500.0,0.00014246,2]
[329868576,1718775071374,-500.0,0.00014246,2]
[329868577,1718775071384,-500.0,0.00014246,2]
[329868578,1718775071393,-500.0,0.00014246,2]
[329868579,1718775071404,-1540.21,0.00014246,2]
[329868580,1718775071414,-1312.31,0.00014246,2]
[329868581,1718775071424,-1337.0,0.00014246,2]
[329868582,1718775071433,-500.0,0.00014246,2]
[329868583,1718775071445,-500.0,0.00014246,2]
[329868584,1718775071454,-1343.69,0.00014246,2]
[329868585,1718775071464,-2567.69,0.00014246,2]
[329868586,1718775071474,-500.0,0.00014246,2]
[329868587,1718775071484,-2223.99,0.00014246,2]
[329868588,1718775071494,-500.0,0.00014246,2]
[329868589,1718775071503,-500.0,0.00014246,2]
[329868590,1718775071513,-2608.54,0.00014246,2]
[329868591,1718775071523,-1260.89,0.00014246,2]
[329868592,1718775071533,-500.0,0.00014246,2]
[329868593,1718775071543,-683.54,0.00014246,2]
[329868594,1718775071557,-500.0,0.00014246,2]
[329868595,1718775071567,-942.07,0.00014246,2]
[329868596,1718775071576,-500.0,0.00014246,2]
[329868597,1718775071586,-500.0,0.00014246,2]
[329868598,1718775071599,-500.0,0.00014246,2]
[329868599,1718775071610,-562.71998434,0.00014246,2]
[329868600,1718775071623,-1222.87,0.00014246,2]
[329868601,1718775071633,-2147.29,0.00014246,2]
[329868602,1718775071644,-500.0,0.00014246,2]
[329868603,1718775071654,-500.0,0.00014246,2]
[329868604,1718775071664,-500.0,0.00014246,2]
[329868605,1718775071673,-988.45,0.00014246,2]
[329868606,1718775071683,-500.0,0.00014246,2]
[329868607,1718775071695,-1700.06,0.00014246,2]
[329868608,1718775071705,-832.65,0.00014246,2]
[329868609,1718775071715,-979.7,0.00014246,2]
[329868610,1718775071725,-1066.73,0.00014246,2]
[329868611,1718775071735,-1461.35,0.00014246,2]
[329868612,1718775071744,-500.0,0.00014246,2]
[329868613,1718775071754,-2120.37,0.00014246,2]
[329868614,1718775071763,-1817.07,0.00014246,2]
[329868615,1718775071773,-500.0,0.00014246,2]
[329868616,1718775071782,-1200.28,0.00014246,2]
[329868617,1718775071792,-782.75,0.00014246,2]
[329868618,1718775071806,-1533.46,0.00014246,2]
[329868619,1718775071816,-500.0,0.00014246,2]
[329868620,1718775071825,-543.39,0.00014246,2]
[329868621,1718775071835,-524.96699313,0.00014246,2]
[329868622,1718775071845,-500.0,0.00014246,2]
[329868623,1718775071854,-569.03155592,0.00014246,2]
[329868624,1718775071864,-1347.52,0.00014246,2]
[329868625,1718775071873,-1722.46,0.00014246,2]
[329868626,1718775071884,-962.23,0.00014246,2]
[329868627,1718775071894,-1022.75,0.00014246,2]
[329868628,1718775071904,-500.0,0.00014246,2]
[329868629,1718775071913,-1785.01,0.00014246,2]
[329868630,1718775072188,-536.32,0.00014246,2]
[329868631,1718775072198,-500.0,0.00014246,2]
[329868632,1718775072208,-500.0,0.00014246,2]
[329868633,1718775072218,-1896.26,0.00014246,2]
[329868634,1718775072227,-500.0,0.00014246,2]
[329868635,1718775072237,-525.35750466,0.00014246,2]
[329868636,1718775072246,-940.95,0.00014246,2]
[329868637,1718775072256,-653.49,0.00014246,2]
[329868638,1718775072265,-2679.48,0.00014246,2]
[329868639,1718775072275,-800.58,0.00014246,2]
[329868640,1718775072284,-500.0,0.00014246,2]
[329868641,1718775072293,-2502.53,0.00014246,2]
[329868642,1718775072305,-508.97,0.00014246,2]
[329868643,1718775072315,-1514.94,0.00014246,2]
[329868644,1718775072324,-500.0,0.00014246,2]
[329868645,1718775072333,-500.0,0.00014246,2]
[329868646,1718775072343,-500.0,0.00014246,2]
[329868647,1718775072352,-500.0,0.00014246,2]
[329868648,1718775072362,-500.0,0.00014246,2]
[329868649,1718775072371,-1483.59,0.00014246,2]
[329868650,1718775072380,-500.0,0.00014246,2]
[329868651,1718775072390,-1483.9,0.00014246,2]
[329868652,1718775072399,-500.0,0.00014246,2]
[329868653,1718775072409,-1917.82,0.00014246,2]
[329868654,1718775072418,-1357.83,0.00014246,2]
[329868655,1718775072428,-500.0,0.00014246,2]
[329868656,1718775072438,-1016.56,0.00014246,2]